[Event "2nd Thailand Pattaya Open 2019"]
[Site "Pattaya"]
[Date "2019.10.25"]
[Round "1.2"]
[White "Gomez, John Paul"]
[Black "Chia, Yu Zhe Ashton"]
[Result "1-0"]
[ECO "A35"]
[WhiteElo "2433"]
[BlackElo "1848"]
[Annotator "ChessBase"]
[PlyCount "87"]
[EventDate "2019.10.23"]
[EventType "swiss"]
[EventCountry "THA"]
[SourceTitle "playchess.com"]
[Source "ChessBase"]
[SourceQuality "1"]
[TimeControl "5400+30"]

1. Nf3 {[%emt 0:01:08]} c5 {[%emt 0:02:18]} 2. c4 {[%emt 0:02:20]} Nc6 {[%emt 0:00:43]} 3. Nc3 {[%emt 0:00:17]} g6 {[%emt 0:01:51]} 4. e3 {[%emt 0:00:07]} Nf6 {[%emt 0:02:51]} 5. d4 {[%emt 0:00:06]} cxd4 {[%emt 0:00:24]} 6. exd4 {[%emt 0:00:06]} d5 {[%emt 0:03:39]} 7. cxd5 {[%emt 0:00:06]} Nxd5 {[%emt 0:00:27]} 8. Qb3 {[%emt 0:00:05]} Nxc3 {[%emt 0:01:17]} 9. Bc4 {[%emt 0:00:57]} e6 {[%emt 0:10:09]} 10. bxc3 {[%emt 0:00:54]} Bg7 {[%emt 0:00:26]} 11. Ba3 {[%emt 0:00:17]} a6 {[%emt 0:03:58]} 12. Bd3 {[%emt 0:01:12]} b5 {[%emt 0:04:22]} 13. O-O {[%emt 0:01:00]} Bb7 {[%emt 0:00:12]} 14. Rfe1 {[%emt 0:00:42]} Qc7 {[%emt 0:14:13]} 15. Ng5 {[%emt 0:04:41]} O-O-O {[%emt 0:09:12]} 16. Bc5 {[%emt 0:01:07]} Ne5 {[%emt 0:14:20]} 17. Be4 {[%emt 0:02:07]} Bd5 {[%emt 0:06:47]} 18. Qa3 {[%emt 0:02:17]} h6 {[%emt 0:06:10]} 19. Qxa6+ {[%emt 0:02:36]} Qb7 {[%emt 0:00:01]} 20. Qxb7+ {[%emt 0:02:10]} Kxb7 {[%emt 0:00:12]} 21. f4 {[%emt 0:01:51]} hxg5 {[%emt 0:02:25]} 22. fxe5 {[%emt 0:00:43]} Bxe4 {[%emt 0:00:56]} 23. Rxe4 {[%emt 0:00:08]} Rd5 {[%emt 0:00:04]} 24. Rf1 {[%emt 0:01:31]} Rd7 {[%emt 0:00:54]} 25. Re2 {[%emt 0:00:14]} Bh6 {[%emt 0:01:27]} 26. Ref2 {[%emt 0:00:22]} Rh7 {[%emt 0:01:37]} 27. g4 {[%emt 0:02:08]} Kc6 {[%emt 0:01:06]} 28. Kg2 {[%emt 0:00:11]} Kd5 {[%emt 0:00:25]} 29. Rb1 {[%emt 0:01:03]} Rb7 {[%emt 0:00:25]} 30. a4 {[%emt 0:00:43]} Kc6 {[%emt 0:00:46]} 31. Rfb2 {[%emt 0:00:21]} Rh8 {[%emt 0:00:20]} 32. axb5+ {[%emt 0:00:23]} Kd5 {[%emt 0:00:24]} 33. Rb4 {[%emt 0:00:47]} Bf8 {[%emt 0:00:45]} 34. c4+ {[%emt 0:01:33]} Ke4 {[%emt 0:00:03]} 35. Bxf8 {[%emt 0:01:43]} Rxf8 {[%emt 0:00:01]} 36. c5 {[%emt 0:00:16]} Ra8 {[%emt 0:01:04]} 37. R1b2 {[%emt 0:01:11]} Ra3 {[%emt 0:00:31]} 38. Rc2 {[%emt 0:00:53]} Ra8 {[%emt 0:00:35]} 39. b6 {[%emt 0:00:34]} Rc8 {[%emt 0:01:30]} 40. c6 {[%emt 0:00:22]} Rbb8 {[%emt 0:00:07]} 41. Rc5 {[%emt 0:00:27]} Kf4 {[%emt 0:00:14]} 42. b7 {[%emt 0:00:19]} Rc7 {[%emt 0:00:04]} 43. Ra4 {[%emt 0:00:54]} Rxc6 {[%emt 0:00:15]} 44. d5+ {[%emt 0:00:16]} 1-0

[Event "2nd Thailand Pattaya Open 2019"]
[Site "Pattaya"]
[Date "2019.10.25"]
[Round "1.3"]
[White "Wongsawan, Thoetsak"]
[Black "Pascua, Haridas"]
[Result "0-1"]
[ECO "C78"]
[WhiteElo "1848"]
[BlackElo "2425"]
[Annotator "ChessBase"]
[PlyCount "90"]
[EventDate "2019.10.23"]
[EventType "swiss"]
[EventCountry "THA"]
[SourceTitle "playchess.com"]
[Source "ChessBase"]
[SourceQuality "1"]
[TimeControl "5400+30"]

1. e4 {[%emt 1:30:30]} e5 {[%emt 1:30:30]} 2. Nf3 {[%emt 0:00:30]} Nc6 {[%emt 0:00:30]} 3. Bb5 {[%emt 0:00:30]} a6 {[%emt 0:00:30]} 4. Ba4 {[%emt 0:00:30]} Nf6 {[%emt 0:00:30]} 5. O-O {[%emt 0:00:30]} b5 {[%emt 0:00:30]} 6. Bb3 {[%emt 0:00:30]} Bc5 {[%emt 0:00:30]} 7. c3 {[%emt 0:00:30]} d6 {[%emt 0:00:30]} 8. d4 {[%emt 0:00:30]} Bb6 {[%emt 0:00:30]} 9. a4 {[%emt 0:00:30]} Bg4 {[%emt 0:00:30]} 10. d5 {[%emt 0:00:30]} Na5 {[%emt 0:00:30]} 11. Bc2 {[%emt 0:00:30]} O-O {[%emt 0:00:30]} 12. h3 {[%emt 0:00:30]} Bh5 {[%emt 0:00:30]} 13. Qd3 {[%emt 0:00:30]} Bg6 {[%emt 0:00:30]} 14. Bg5 {[%emt 0:00:30]} Rb8 {[%emt 0:00:30]} 15. Nbd2 {[%emt 0:00:30]} c5 {[%emt 0:00:30]} 16. c4 {[%emt 0:00:30]} bxc4 {[%emt 0:00:30]} 17. Nxc4 {[%emt 0:00:30]} h6 {[%emt 0:00:30]} 18. Bh4 {[%emt 0:00:30]} Nxc4 {[%emt 0:00:30]} 19. Qxc4 {[%emt 0:00:30]} Ra8 {[%emt 0:00:30]} 20. Ra3 {[%emt 0:00:30]} Bh7 {[%emt 0:00:30]} 21. Nh2 {[%emt 0:00:30]} g5 {[%emt 0:00:30]} 22. Bg3 {[%emt 0:00:30]} Ba5 {[%emt 0:00:30]} 23. Qe2 {[%emt 0:00:30]} Rb8 {[%emt 0:00:30]} 24. Rb1 {[%emt 0:00:30]} Rb4 {[%emt 0:00:30]} 25. Re3 {[%emt 0:00:30]} Bg6 {[%emt 0:00:30]} 26. Ng4 {[%emt 0:00:30]} Nxg4 {[%emt 0:00:30]} 27. hxg4 {[%emt 0:00:30]} Qb6 {[%emt 0:00:30]} 28. Bd3 {[%emt 0:00:30]} Rxa4 {[%emt 0:00:30]} 29. Bxa6 {[%emt 0:00:30]} Rxe4 {[%emt 0:00:30]} 30. Rxe4 {[%emt 0:00:30]} Bxe4 {[%emt 0:00:30]} 31. Qxe4 {[%emt 0:00:30]} Qxa6 {[%emt 0:00:30]} 32. Ra1 {[%emt 0:00:30]} Qb5 {[%emt 0:00:30]} 33. Kh2 {[%emt 0:00:30]} Bb6 {[%emt 0:00:30]} 34. b3 {[%emt 0:00:30]} Bc7 {[%emt 0:00:30]} 35. Ra7 {[%emt 0:00:30]} Bb8 {[%emt 0:00:30]} 36. Re7 {[%emt 0:00:30]} Qxb3 {[%emt 0:00:30]} 37. Re6 {[%emt 0:00:30]} Kg7 {[%emt 0:00:30]} 38. Re7 {[%emt 0:00:30]} c4 {[%emt 0:00:30]} 39. Qf5 {[%emt 0:00:30]} Qd3 {[%emt 0:00:30]} 40. Qe6 {[%emt 0:00:30]} c3 {[%emt 0:00:30]} 41. f4 {[%emt 0:00:30]} gxf4 {[%emt 0:00:30]} 42. Bh4 {[%emt 0:00:30]} Qg6 {[%emt 0:00:30]} 43. Qd7 {[%emt 0:00:30]} c2 {[%emt 0:00:30]} 44. Re6 {[%emt 0:00:30]} Qxg4 {[%emt 0:00:30]} 45. Bf6+ {[%emt 0:00:30]} Kg8 {[%emt 0:00:30]} 0-1

[Event "2nd Thailand Pattaya Open 2019"]
[Site "Pattaya"]
[Date "2019.10.25"]
[Round "1.4"]
[White "Schebler, Gerhard"]
[Black "Ashwin, Hariharan"]
[Result "1/2-1/2"]
[ECO "D02"]
[WhiteElo "2398"]
[BlackElo "1837"]
[Annotator "ChessBase"]
[PlyCount "89"]
[EventDate "2019.10.23"]
[EventType "swiss"]
[EventCountry "THA"]
[SourceTitle "playchess.com"]
[Source "ChessBase"]
[SourceQuality "1"]
[TimeControl "5400+30"]

1. Nf3 {[%emt 0:00:00]} d5 {[%emt 0:00:37]} 2. g3 {[%emt 1:31:00]} Bg4 {[%emt 0:00:26]} 3. Bg2 {[%emt 0:00:00]} Nd7 {[%emt 0:00:24]} 4. d4 {[%emt 0:00:00]} c6 {[%emt 0:05:09]} 5. Nbd2 {[%emt 0:00:00]} Ngf6 {[%emt 0:00:54]} 6. O-O {[%emt 0:00:00]} e6 {[%emt 0:00:41]} 7. Re1 {[%emt 0:00:00]} Be7 {[%emt 0:00:31]} 8. e4 {[%emt 0:00:00]} O-O {[%emt 0:00:47]} 9. c3 {[%emt 0:00:00]} dxe4 {[%emt 0:02:13]} 10. Nxe4 {[%emt 0:00:00]} Nxe4 {[%emt 0:00:29]} 11. Rxe4 {[%emt 0:00:00]} Bxf3 {[%emt 0:00:38]} 12. Bxf3 {[%emt 0:00:00]} Bg5 {[%emt 0:00:09]} 13. Bxg5 {[%emt 0:00:00]} Qxg5 {[%emt 0:01:14]} 14. Qb3 {[%emt 0:00:00]} Rab8 {[%emt 0:08:36]} 15. Rae1 {[%emt 0:00:00]} Qa5 {[%emt 0:06:59]} 16. a3 {[%emt 0:00:00]} Qc7 {[%emt 0:04:41]} 17. R4e2 {[%emt 0:00:00]} Nf6 {[%emt 0:03:27]} 18. Qc4 {[%emt 0:00:00]} Rfd8 {[%emt 0:06:18]} 19. h4 {[%emt 0:00:00]} h6 {[%emt 0:01:00]} 20. Re5 {[%emt 0:00:00]} Rbc8 {[%emt 0:03:16]} 21. Qe2 {[%emt 0:00:00]} Qd6 {[%emt 0:08:16]} 22. Bg2 {[%emt 0:00:00]} Rc7 {[%emt 0:04:41]} 23. Kh2 {[%emt 0:00:00]} b6 {[%emt 0:07:35]} 24. Kg1 {[%emt 0:00:00]} c5 {[%emt 0:03:22]} 25. dxc5 {[%emt 0:00:00]} Rxc5 {[%emt 0:01:10]} 26. Rxc5 {[%emt 0:00:00]} Qxc5 {[%emt 0:06:50]} 27. Bf3 {[%emt 0:00:00]} Qc7 {[%emt 0:07:42]} 28. Kg2 {[%emt 0:00:00]} Nd7 {[%emt 0:01:41]} 29. Be4 {[%emt 0:00:00]} Nf6 {[%emt 0:00:27]} 30. Bc2 {[%emt 0:00:00]} Qd6 {[%emt 0:03:41]} 31. Qf3 {[%emt 0:00:00]} Qd5 {[%emt 0:02:32]} 32. Be4 {[%emt 0:00:00]} Nxe4 {[%emt 0:00:25]} 33. Rxe4 {[%emt 0:00:00]} Qd1 {[%emt 0:04:02]} 34. Rc4 {[%emt 0:00:00]} Qxf3+ {[%emt 0:03:43]} 35. Kxf3 {[%emt 0:00:00]} Rd2 {[%emt 0:02:03]} 36. b3 {[%emt 0:00:00]} Rb2 {[%emt 0:00:34]} 37. b4 {[%emt 0:00:00]} Ra2 {[%emt 0:00:17]} 38. Rc8+ {[%emt 0:00:00]} Kh7 {[%emt 0:00:00]} 39. h5 {[%emt 0:00:00]} Rxa3 {[%emt 0:00:48]} 40. Rc7 {[%emt 0:00:00]} a5 {[%emt 0:01:05]} 41. bxa5 {[%emt 0:00:00]} Rxa5 {[%emt 0:00:32]} 42. Rxf7 {[%emt 0:00:00]} Rxh5 {[%emt 0:00:05]} 43. Rb7 {[%emt 0:00:00]} Rc5 {[%emt 0:00:46]} 44. Rxb6 {[%emt 0:00:00]} Rxc3+ {[%emt 0:00:03]} 45. Ke4 {[%emt 0:21:30]} 1/2-1/2

[Event "2nd Thailand Pattaya Open 2019"]
[Site "Pattaya"]
[Date "2019.10.25"]
[Round "1.5"]
[White "Nisban, Cyrus"]
[Black "Villamayor, Buenaventura"]
[Result "0-1"]
[ECO "A46"]
[WhiteElo "1833"]
[BlackElo "2371"]
[Annotator "ChessBase"]
[PlyCount "121"]
[EventDate "2019.10.23"]
[EventType "swiss"]
[EventCountry "THA"]
[SourceTitle "playchess.com"]
[Source "ChessBase"]
[SourceQuality "1"]
[TimeControl "5400+30"]

1. d4 {[%emt 0:00:33]} Nf6 {[%emt 0:00:43]} 2. Nf3 {[%emt 0:00:13]} b5 {[%emt 0:01:54]} 3. Bf4 {[%emt 0:01:57]} Bb7 {[%emt 0:00:56]} 4. e3 {[%emt 0:00:48]} a6 {[%emt 0:00:31]} 5. Bd3 {[%emt 0:01:12]} e6 {[%emt 0:00:25]} 6. Nbd2 {[%emt 0:01:11]} Be7 {[%emt 0:01:24]} 7. h3 {[%emt 0:00:39]} c5 {[%emt 0:04:06]} 8. c3 {[%emt 0:08:15]} Nc6 {[%emt 0:01:34]} 9. a4 {[%emt 0:03:23]} b4 {[%emt 0:08:31]} 10. O-O {[%emt 0:03:49]} O-O {[%emt 0:13:29]} 11. Bh2 {[%emt 0:06:50]} d5 {[%emt 0:00:50]} 12. c4 {[%emt 0:08:22]} cxd4 {[%emt 0:07:42]} 13. exd4 {[%emt 0:00:09]} dxc4 {[%emt 0:00:30]} 14. Nxc4 {[%emt 0:00:08]} g6 {[%emt 0:00:22]} 15. Be2 {[%emt 0:04:36]} Na5 {[%emt 0:06:04]} 16. Rc1 {[%emt 0:07:40]} Rc8 {[%emt 0:04:35]} 17. Nfe5 {[%emt 0:04:49]} Nxc4 {[%emt 0:00:43]} 18. Bxc4 {[%emt 0:01:13]} a5 {[%emt 0:00:50]} 19. Qb3 {[%emt 0:05:31]} Nd5 {[%emt 0:09:40]} 20. Bb5 {[%emt 0:02:48]} Bg5 {[%emt 0:02:55]} 21. Rxc8 {[%emt 0:03:39]} Qxc8 {[%emt 0:04:19]} 22. Nd7 {[%emt 0:07:58]} Rd8 {[%emt 0:01:23]} 23. Nc5 {[%emt 0:00:25]} Bf4 {[%emt 0:05:18]} 24. Qf3 {[%emt 0:25:52]} Bxh2+ {[%emt 0:01:35]} 25. Kxh2 {[%emt 0:00:30]} Bc6 {[%emt 0:02:22]} 26. Bxc6 {[%emt 0:00:00]} Qxc6 {[%emt 0:00:03]} 27. Rc1 {[%emt 0:00:00]} Qb6 {[%emt 0:20:46]} 28. Nb3 {[%emt 0:00:00]} Ne7 {[%emt 0:00:00]} 29. Rc5 {[%emt 0:00:00]} Nf5 {[%emt 0:00:00]} 30. Rb5 {[%emt 0:00:00]} Qd6+ {[%emt 0:00:00]} 31. g3 {[%emt 0:00:00]} Nxd4 {[%emt 0:00:00]} 32. Nxd4 {[%emt 0:00:00]} Qxd4 {[%emt 0:00:00]} 33. Rxa5 {[%emt 0:00:00]} Qxb2 {[%emt 0:00:00]} 34. Ra7 {[%emt 0:00:00]} Rf8 {[%emt 0:00:13]} 35. Rb7 {[%emt 0:00:00]} Qc3 {[%emt 0:00:09]} 36. Qxc3 {[%emt 0:00:14]} bxc3 {[%emt 0:00:01]} 37. Rc7 {[%emt 0:00:05]} Ra8 {[%emt 0:00:08]} 38. Rxc3 {[%emt 0:00:05]} Rxa4 {[%emt 0:00:03]} 39. h4 {[%emt 0:00:03]} Kg7 {[%emt 0:00:18]} 40. Rc7 {[%emt 0:01:23]} h6 {[%emt 0:00:11]} 41. Rb7 {[%emt 0:00:32]} g5 {[%emt 0:00:07]} 42. hxg5 {[%emt 0:00:09]} hxg5 {[%emt 0:00:01]} 43. Re7 {[%emt 0:00:57]} g4 {[%emt 0:00:09]} 44. Kg2 {[%emt 0:00:32]} Kg6 {[%emt 0:00:07]} 45. Re8 {[%emt 0:00:42]} Kf5 {[%emt 0:00:08]} 46. Rb8 {[%emt 0:00:25]} e5 {[%emt 0:00:09]} 47. Rb7 {[%emt 0:00:32]} f6 {[%emt 0:00:08]} 48. Rb3 {[%emt 0:00:26]} Kg5 {[%emt 0:00:17]} 49. Re3 {[%emt 0:00:45]} Rc4 {[%emt 0:00:53]} 50. Ra3 {[%emt 0:00:29]} Kf5 {[%emt 0:00:17]} 51. Rb3 {[%emt 0:00:43]} Ke4 {[%emt 0:00:34]} 52. Rb6 {[%emt 0:01:15]} f5 {[%emt 0:01:04]} 53. Rb3 {[%emt 0:00:07]} Kd4 {[%emt 0:02:03]} 54. Rb8 {[%emt 0:01:50]} Rc2 {[%emt 0:00:55]} 55. Rf8 {[%emt 0:00:24]} e4 {[%emt 0:01:23]} 56. Rxf5 {[%emt 0:02:36]} e3 {[%emt 0:00:08]} 57. Kf1 {[%emt 0:00:25]} Rxf2+ {[%emt 0:00:05]} 58. Rxf2 {[%emt 0:00:05]} exf2 {[%emt 0:00:04]} 59. Kxf2 {[%emt 0:00:03]} Kd3 {[%emt 0:00:02]} 60. Kf1 {[%emt 0:01:23]} Ke3 {[%emt 0:06:53]} 61. Kg2 {[%emt 0:01:50]} 0-1

[Event "2nd Thailand Pattaya Open 2019"]
[Site "Pattaya"]
[Date "2019.10.25"]
[Round "1.6"]
[White "Coenen, Michael"]
[Black "Frederiksen, Erik"]
[Result "1-0"]
[ECO "C30"]
[WhiteElo "2365"]
[BlackElo "1830"]
[Annotator "ChessBase"]
[PlyCount "119"]
[EventDate "2019.10.23"]
[EventType "swiss"]
[EventCountry "THA"]
[SourceTitle "playchess.com"]
[Source "ChessBase"]
[SourceQuality "1"]
[TimeControl "5400+30"]

1. e4 {[%emt 0:00:00]} e5 {[%emt 0:05:41]} 2. Nc3 {[%emt 0:00:00]} Nc6 {[%emt 0:00:18]} 3. f4 {[%emt 0:00:18]} Bc5 {[%emt 0:03:49]} 4. Nf3 {[%emt 0:01:15]} d6 {[%emt 0:00:31]} 5. Na4 {[%emt 0:02:51]} Bb6 {[%emt 0:05:22]} 6. Nxb6 {[%emt 0:01:37]} axb6 {[%emt 0:00:13]} 7. Bc4 {[%emt 0:00:26]} Nf6 {[%emt 0:01:21]} 8. d3 {[%emt 0:00:41]} O-O {[%emt 0:07:14]} 9. O-O {[%emt 0:04:42]} Bg4 {[%emt 0:07:01]} 10. h3 {[%emt 0:02:16]} Bxf3 {[%emt 0:06:12]} 11. Qxf3 {[%emt 0:00:13]} Nd4 {[%emt 0:57:48]} 12. Qf2 {[%emt 1:21:41]} b5 {[%emt 0:00:30]} 13. Bb3 {[%emt 0:00:00]} Nxb3 {[%emt 0:00:00]} 14. cxb3 {[%emt 0:00:00]} Qd7 {[%emt 0:00:00]} 15. fxe5 {[%emt 0:00:00]} dxe5 {[%emt 0:00:00]} 16. Qg3 {[%emt 0:00:00]} Qe6 {[%emt 0:00:00]} 17. Rf5 {[%emt 0:00:00]} Nd7 {[%emt 0:00:00]} 18. b4 {[%emt 0:03:00]} f6 {[%emt 0:03:00]} 19. a3 {[%emt 0:00:00]} Ra6 {[%emt 0:00:00]} 20. Bh6 {[%emt 0:00:00]} Rf7 {[%emt 0:00:00]} 21. Rc1 {[%emt 0:00:00]} Rc6 {[%emt 0:00:00]} 22. Rff1 {[%emt 0:00:00]} Rxc1 {[%emt 0:00:00]} 23. Rxc1 {[%emt 0:00:00]} c6 {[%emt 0:00:00]} 24. Bd2 {[%emt 0:00:00]} Nf8 {[%emt 0:00:00]} 25. h4 {[%emt 0:00:00]} Rd7 {[%emt 0:00:00]} 26. Rf1 {[%emt 0:00:00]} Kh8 {[%emt 0:00:00]} 27. h5 {[%emt 0:00:00]} h6 {[%emt 0:00:00]} 28. Rf3 {[%emt 0:00:00]} Qe8 {[%emt 0:00:00]} 29. Qg4 {[%emt 0:00:00]} Rf7 {[%emt 0:00:00]} 30. Rg3 {[%emt 0:00:00]} Qd7 {[%emt 0:00:00]} 31. Kf1 {[%emt 0:00:00]} Qxg4 {[%emt 0:00:00]} 32. Rxg4 {[%emt 0:00:00]} Ne6 {[%emt 0:00:10]} 33. Rh4 {[%emt 0:00:00]} Rd7 {[%emt 0:00:51]} 34. Ke2 {[%emt 0:00:00]} Kg8 {[%emt 0:00:40]} 35. Be3 {[%emt 0:00:00]} Kf7 {[%emt 0:00:24]} 36. g3 {[%emt 0:00:00]} Nd4+ {[%emt 0:01:56]} 37. Bxd4 {[%emt 0:00:00]} Rxd4 {[%emt 0:00:06]} 38. Rh1 {[%emt 0:00:00]} Ke6 {[%emt 0:00:56]} 39. Rf1 {[%emt 0:00:00]} Rd8 {[%emt 0:00:43]} 40. Ke3 {[%emt 0:00:00]} Rd4 {[%emt 0:01:13]} 41. Kd2 {[%emt 0:00:00]} Kd6 {[%emt 0:01:16]} 42. g4 {[%emt 0:00:00]} Ke6 {[%emt 0:00:21]} 43. Kc3 {[%emt 0:00:00]} Rd8 {[%emt 0:00:44]} 44. Rf2 {[%emt 0:00:00]} Rd4 {[%emt 0:01:05]} 45. Rf5 {[%emt 0:00:00]} Rd8 {[%emt 0:00:16]} 46. Rf1 {[%emt 0:00:00]} Ke7 {[%emt 0:00:25]} 47. Ra1 {[%emt 0:00:00]} Ra8 {[%emt 0:01:03]} 48. Kd2 {[%emt 0:00:00]} Ke6 {[%emt 0:00:13]} 49. Ke3 {[%emt 0:00:00]} Ke7 {[%emt 0:01:04]} 50. b3 {[%emt 0:00:00]} b6 {[%emt 0:01:20]} 51. a4 {[%emt 0:00:00]} c5 {[%emt 0:01:10]} 52. bxc5 {[%emt 0:00:00]} bxc5 {[%emt 0:00:01]} 53. Kd2 {[%emt 0:00:00]} b4 {[%emt 0:00:27]} 54. Ke3 {[%emt 0:00:00]} Kd6 {[%emt 0:00:02]} 55. Ra2 {[%emt 0:00:00]} Ra7 {[%emt 0:00:20]} 56. Kf3 {[%emt 0:00:00]} Kc6 {[%emt 0:00:31]} 57. Rf2 {[%emt 0:00:00]} Rd7 {[%emt 0:00:17]} 58. Ke3 {[%emt 0:00:00]} Kb6 {[%emt 0:01:07]} 59. Rf1 {[%emt 0:00:00]} Rd8 {[%emt 0:00:02]} 60. g5 {[%emt 0:21:00]} 1-0

[Event "2nd Thailand Pattaya Open 2019"]
[Site "Pattaya"]
[Date "2019.10.25"]
[Round "2.2"]
[White "Gras, Guillaume"]
[Black "Gomez, John Paul"]
[Result "0-1"]
[ECO "A11"]
[WhiteElo "2056"]
[BlackElo "2433"]
[Annotator "ChessBase"]
[PlyCount "136"]
[EventDate "2019.10.23"]
[EventType "swiss"]
[EventCountry "THA"]
[SourceTitle "playchess.com"]
[Source "ChessBase"]
[SourceQuality "1"]
[TimeControl "5400+30"]

1. c4 c6 2. Nc3 d5 3. e3 Nf6 4. Nf3 Bf5 5. Qb3 Qb6 6. cxd5 Qxb3 7. axb3 Nxd5 8. Nxd5 cxd5 9. Nd4 Bd7 10. Nb5 Bxb5 11. Bxb5+ Nd7 12. d4 e6 13. Bd2 Bd6 14. O-O a6 15. f3 Ke7 16. Bd3 Rhc8 17. e4 dxe4 18. fxe4 e5 19. Bc4 f6 20. Bd5 Rc2 21. Bc3 Rb8 22. Rac1 Rxc1 23. Rxc1 b6 24. dxe5 Nxe5 25. Bxe5 Bxe5 26. g4 h5 27. h3 hxg4 28. hxg4 Rh8 29. g5 fxg5 30. Kg2 Rh2+ 31. Kf3 Rxb2 32. Rc6 Bd4 33. Rc7+ Kd6 34. Rc6+ Kd7 35. Rg6 Rf2+ 36. Kg3 Rf1 37. Kg4 Rg1+ 38. Kf3 g4+ 39. Kf4 Rf1+ 40. Kxg4 Rg1+ 41. Kf5 Rxg6 42. Kxg6 Kd6 43. Kf5 {[%emt 0:33:33]} b5 {[%emt 1:51:30]} 44. Bg8 {[%emt 1:17:12]} a5 {[%emt 0:00:00]} 45. Bf7 {[%emt 0:00:08]} Bc3 {[%emt 0:00:00]} 46. Bg8 {[%emt 0:00:19]} Bf6 {[%emt 0:00:00]} 47. Bf7 {[%emt 0:00:11]} Bb2 {[%emt 0:00:00]} 48. Be8 {[%emt 0:00:13]} Kc5 {[%emt 0:00:00]} 49. Bf7 {[%emt 0:00:05]} Bf6 {[%emt 0:00:00]} 50. Bg8 {[%emt 0:00:43]} Kd4 {[%emt 0:00:00]} 51. Be6 {[%emt 0:00:07]} a4 {[%emt 0:00:00]} 52. bxa4 {[%emt 0:00:35]} bxa4 {[%emt 0:00:00]} 53. Ba2 {[%emt 0:00:41]} Be7 {[%emt 0:05:00]} 54. Kg6 Bf8 55. Kf5 Be7 {[%emt 0:00:00]} 56. Kg6 {[%emt 0:01:32]} Bf8 {[%emt 0:00:00]} 57. Kf5 {[%emt 0:00:14]} Be7 {[%emt 0:00:00]} 58. Kg6 {[%emt 0:00:07]} Bf6 {[%emt 0:02:30]} 59. Kf5 g5 60. Kxf6 g4 61. e5 g3 62. e6 g2 63. e7 g1=Q 64. Bf7 Qf2+ 65. Kg7 Qg3+ 66. Bg6 Qc7 67. Kf8 a3 68. Bf7 Qd6 {[%emt 0:00:00]} 0-1

[Event "2nd Thailand Pattaya Open 2019"]
[Site "Pattaya"]
[Date "2019.10.25"]
[Round "2.3"]
[White "Pascua, Haridas"]
[Black "Barbe, Tom"]
[Result "1-0"]
[ECO "D23"]
[WhiteElo "2425"]
[BlackElo "2059"]
[Annotator "ChessBase"]
[PlyCount "59"]
[EventDate "2019.10.23"]
[EventType "swiss"]
[EventCountry "THA"]
[SourceTitle "playchess.com"]
[Source "ChessBase"]
[SourceQuality "1"]
[TimeControl "5400+30"]

1. c4 c6 2. Nf3 d5 3. d4 Nf6 4. Qb3 dxc4 5. Qxc4 b5 6. Qc2 Bb7 7. e4 e6 8. a4 a6 9. Bd3 Nbd7 10. O-O Qb6 11. Qe2 Be7 12. Be3 O-O 13. Rc1 b4 14. a5 Qa7 15. d5 Bc5 16. Rxc5 Nxc5 17. Qc2 Nfd7 18. dxe6 fxe6 19. Nbd2 Rfd8 20. Be2 h6 21. Rc1 Rac8 22. Bxc5 Nxc5 23. Qxc5 Qxc5 24. Rxc5 Rc7 25. Bc4 Kf7 26. Kf1 Ke7 27. Ke2 Kd6 28. Nb3 g5 29. e5+ Ke7 30. Nfd4 {[%emt 0:19:09]} 1-0

[Event "2nd Thailand Pattaya Open 2019"]
[Site "Pattaya"]
[Date "2019.10.25"]
[Round "2.4"]
[White "Villamayor, Buenaventura"]
[Black "Khumnorkaew, Tupfah"]
[Result "1-0"]
[ECO "A14"]
[WhiteElo "2371"]
[BlackElo "2048"]
[Annotator "ChessBase"]
[PlyCount "131"]
[EventDate "2019.10.23"]
[EventType "swiss"]
[EventCountry "THA"]
[SourceTitle "playchess.com"]
[Source "ChessBase"]
[SourceQuality "1"]
[TimeControl "5400+30"]

1. c4 e6 2. g3 Nf6 3. Bg2 d5 4. Nf3 Be7 5. O-O O-O 6. b3 b6 7. Bb2 Bb7 8. e3 c5 9. cxd5 Nxd5 10. d4 {[%emt 0:06:45]} Nc6 {[%emt 0:19:48]} 11. Nbd2 {[%emt 0:00:30]} Qd7 {[%emt 0:00:30]} 12. dxc5 {[%emt 0:00:30]} Bxc5 {[%emt 0:00:30]} 13. Nc4 {[%emt 0:00:30]} Rad8 {[%emt 0:00:30]} 14. Qe2 {[%emt 0:00:30]} Qc8 {[%emt 0:00:30]} 15. a3 {[%emt 0:00:30]} Be7 {[%emt 0:00:30]} 16. Rac1 {[%emt 0:00:30]} Qa8 {[%emt 0:00:30]} 17. Rfd1 {[%emt 0:00:30]} h6 {[%emt 0:00:30]} 18. b4 {[%emt 0:00:30]} Nf6 {[%emt 0:00:30]} 19. Bxf6 {[%emt 0:00:30]} gxf6 {[%emt 0:00:30]} 20. Ne1 {[%emt 0:00:30]} Nb8 {[%emt 0:00:30]} 21. e4 {[%emt 0:00:30]} Rxd1 {[%emt 0:00:30]} 22. Rxd1 {[%emt 0:00:30]} Rd8 {[%emt 0:00:30]} 23. Rxd8+ {[%emt 0:00:30]} Bxd8 {[%emt 0:00:30]} 24. Qh5 {[%emt 0:00:30]} Be7 {[%emt 0:00:30]} 25. e5 {[%emt 0:00:30]} f5 {[%emt 0:00:30]} 26. Nd6 {[%emt 0:00:30]} Bxd6 {[%emt 0:00:30]} 27. exd6 {[%emt 0:00:30]} Bxg2 {[%emt 0:00:30]} 28. Nxg2 {[%emt 0:00:30]} Qd5 {[%emt 0:00:30]} 29. Nf4 {[%emt 0:00:30]} Qxd6 {[%emt 0:00:30]} 30. Qxh6 {[%emt 0:00:30]} Qd1+ {[%emt 0:00:30]} 31. Kg2 {[%emt 0:00:30]} Qg4 {[%emt 0:00:30]} 32. Qf6 {[%emt 0:00:30]} Qd1 {[%emt 0:00:30]} 33. b5 {[%emt 0:00:30]} a6 {[%emt 0:00:30]} 34. a4 {[%emt 0:00:30]} axb5 {[%emt 0:00:30]} 35. axb5 {[%emt 0:00:30]} Nd7 {[%emt 0:00:30]} 36. Qd8+ {[%emt 0:00:30]} Kg7 {[%emt 0:00:30]} 37. h4 {[%emt 0:00:30]} e5 {[%emt 0:00:30]} 38. Qg5+ {[%emt 0:00:30]} Kf8 {[%emt 0:00:30]} 39. Nh5 {[%emt 0:00:30]} Qd5+ {[%emt 0:00:30]} 40. Kh2 {[%emt 0:00:30]} Qe6 {[%emt 0:00:30]} 41. Qd8+ {[%emt 0:00:30]} Qe8 {[%emt 0:00:30]} 42. Qxe8+ {[%emt 0:00:30]} Kxe8 {[%emt 0:00:30]} 43. Ng7+ {[%emt 0:00:30]} Ke7 {[%emt 0:00:30]} 44. Nxf5+ {[%emt 0:00:30]} Ke6 {[%emt 0:00:30]} 45. g4 {[%emt 0:00:30]} Nf6 {[%emt 0:00:30]} 46. f3 {[%emt 0:00:30]} e4 {[%emt 0:00:30]} 47. Kg3 {[%emt 0:00:30]} exf3 {[%emt 0:00:30]} 48. Kxf3 {[%emt 0:00:30]} Nd5 {[%emt 0:00:30]} 49. h5 {[%emt 0:00:30]} Kf6 {[%emt 0:00:30]} 50. Nd6 {[%emt 0:00:30]} Nc7 {[%emt 0:00:30]} 51. Kf4 {[%emt 0:00:30]} Nd5+ {[%emt 0:00:30]} 52. Kg3 {[%emt 0:00:30]} Ke6 {[%emt 0:00:30]} 53. Ne8 {[%emt 0:00:30]} Ne7 {[%emt 0:00:30]} 54. Kf4 {[%emt 0:00:30]} f6 {[%emt 0:00:30]} 55. Ke4 {[%emt 0:00:30]} f5+ {[%emt 0:00:30]} 56. gxf5+ {[%emt 0:00:30]} Nxf5 {[%emt 0:00:30]} 57. Nc7+ {[%emt 0:00:30]} Kf6 {[%emt 0:00:30]} 58. Nd5+ {[%emt 0:00:30]} Kg5 {[%emt 0:00:30]} 59. Ke5 {[%emt 0:00:30]} Nh4 {[%emt 0:00:30]} 60. Nxb6 {[%emt 0:00:30]} Nf3+ {[%emt 0:00:30]} 61. Kd5 {[%emt 0:00:30]} Ne1 {[%emt 0:00:30]} 62. Na4 {[%emt 0:00:30]} Nd3 {[%emt 0:00:30]} 63. b6 {[%emt 0:00:30]} Nb4+ {[%emt 0:00:30]} 64. Kc5 {[%emt 0:00:30]} Na6+ {[%emt 0:00:30]} 65. Kb5 {[%emt 0:00:30]} Nb8 {[%emt 0:00:30]} 66. Nc5 {[%emt 0:00:30]} 1-0